bitfinex-derivatives/quotes_BTCF0:USTF0_20251110
["timestamp","ask_amount","ask_price","bid_price","bid_amount"]
[1762807843079,0.28419379,106030.0,106020.0,0.06914116]
[1762807843276,0.28419379,106030.0,106020.0,0.07214116]
[1762807843573,0.25021924,106030.0,106020.0,0.06202803]
[1762807843876,0.27363481,106030.0,106020.0,0.06202803]
[1762807844467,0.27271621,106030.0,106020.0,0.06102803]
[1762807844668,0.10238912,106030.0,106020.0,0.071088]
[1762807844876,0.19582406,106030.0,106020.0,0.1654427]
[1762807845074,0.29016986,106030.0,106020.0,0.1654427]
[1762807845777,0.19582406,106030.0,106020.0,0.1654427]
[1762807845967,0.11884287,106030.0,106020.0,0.1654427]
[1762807846278,0.29016996,106030.0,106020.0,0.1654427]
[1762807846475,0.29016996,106030.0,106020.0,0.071088]
[1762807846662,0.19582406,106030.0,106020.0,0.1654428]
[1762807846863,0.0010814,106030.0,106020.0,0.4012428]
[1762807847064,0.0944692,106050.0,106040.0,0.151547]
[1762807847375,0.11787233,106050.0,106040.0,0.15374503]
[1762807847569,0.02354423,106050.0,106040.0,0.15374503]
[1762807847777,0.11787223,106050.0,106040.0,0.15374503]
[1762807847969,0.02362859,106050.0,106040.0,0.15374503]
[1762807848478,0.09455346,106050.0,106040.0,0.15374503]
[1762807849170,0.09855346,106050.0,106040.0,0.15374503]
[1762807849680,0.007,106050.0,106040.0,0.15374503]
[1762807850073,0.098328,106050.0,106040.0,0.15374493]
[1762807850279,0.26965509,106050.0,106040.0,0.15374493]
[1762807850578,0.26672224,106050.0,106040.0,0.15374493]
[1762807850979,0.26672224,106050.0,106040.0,0.05940803]
[1762807853479,0.26672224,106050.0,106040.0,0.15374503]
[1762807854582,0.00106715,106050.0,106040.0,0.15374503]
[1762807854780,0.09539525,106050.0,106040.0,0.15374503]
[1762807855983,0.09539525,106050.0,106040.0,0.05940803]
[1762807856278,0.26672234,106050.0,106040.0,0.15374503]
[1762807856772,0.00106715,106050.0,106040.0,0.15374503]
[1762807857985,0.09539525,106050.0,106040.0,0.15374503]
[1762807858281,0.09539525,106050.0,106040.0,0.29934503]
[1762807859584,0.00106715,106050.0,106040.0,0.29934503]
[1762807859884,0.09539525,106050.0,106040.0,0.29934503]
[1762807860483,0.00106715,106050.0,106040.0,0.29934503]
[1762807861187,0.09539525,106050.0,106040.0,0.29934503]
[1762807861372,0.00106715,106050.0,106040.0,0.29934503]
[1762807864095,0.09539525,106050.0,106040.0,0.29934503]
[1762807864879,0.00106715,106050.0,106040.0,0.53510503]
[1762807865071,0.00106715,106050.0,106040.0,0.61909042]
[1762807865270,0.00106715,106050.0,106040.0,0.38333042]
[1762807865887,0.00106715,106050.0,106040.0,0.45769469]
[1762807866184,0.09539525,106050.0,106040.0,0.45769469]
[1762807866384,0.09539525,106050.0,106040.0,0.3737093]
[1762807866680,0.26672234,106050.0,106040.0,0.20500803]
[1762807866881,0.26672234,106050.0,106040.0,0.05940803]
[1762807867086,0.094337,106040.0,106030.0,0.14164649]
[1762807867281,0.26566409,106040.0,106030.0,0.0001411]
[1762807868279,0.26666409,106040.0,106030.0,0.0001411]
[1762807868480,0.26666409,106040.0,106030.0,0.0575311]
[1762807868682,0.26566409,106040.0,106030.0,0.15507493]
[1762807869181,0.17132709,106040.0,106030.0,0.15507493]
[1762807869585,0.26566409,106040.0,106030.0,0.06072913]
[1762807869778,0.26566409,106040.0,106030.0,0.15507493]
[1762807870188,0.26566409,106040.0,106030.0,0.15407493]
[1762807870678,0.17132709,106040.0,106030.0,0.15407493]
[1762807871092,0.26566409,106040.0,106030.0,0.15407503]
[1762807871287,0.26566409,106040.0,106030.0,0.05972913]
[1762807872787,0.26566409,106040.0,106030.0,0.15407503]
[1762807874986,0.26566409,106040.0,106030.0,0.05972913]
[1762807875884,0.26566409,106040.0,106030.0,0.15407493]
[1762807876084,0.094337,106040.0,106030.0,0.15407493]
[1762807876287,0.17132709,106040.0,106030.0,0.15407493]
[1762807876590,0.09440045,106050.0,106040.0,0.1517269]
[1762807876790,0.09440045,106050.0,106040.0,0.15392493]
[1762807877386,0.09440045,106050.0,106040.0,0.05958803]
[1762807877788,0.26872754,106050.0,106040.0,0.05958803]
[1762807878589,0.00306715,106050.0,106040.0,0.15392503]
[1762807878795,0.26872234,106050.0,106040.0,0.05958803]
[1762807879190,0.26872234,106050.0,106040.0,0.15392503]
[1762807879388,0.00306715,106050.0,106040.0,0.15392503]
[1762807880193,0.00306715,106050.0,106040.0,0.05958803]
[1762807880194,0.09739525,106050.0,106040.0,0.05958803]
[1762807880396,0.26872234,106050.0,106040.0,0.05958803]
[1762807880789,0.26672234,106050.0,106040.0,0.05958803]
[1762807880993,0.26572234,106050.0,106040.0,0.05958803]
[1762807881493,0.26572234,106050.0,106040.0,0.15392493]
[1762807881801,0.26572234,106050.0,106040.0,0.05958803]
[1762807881802,0.26672234,106050.0,106040.0,0.05958803]
[1762807882196,0.26672234,106050.0,106040.0,0.15392493]
[1762807882397,0.26872234,106050.0,106040.0,0.15392493]
[1762807883001,0.26872234,106050.0,106040.0,0.05958803]
[1762807884295,0.26872234,106050.0,106040.0,0.15392493]
[1762807885602,0.00306715,106050.0,106040.0,0.15392493]
[1762807885803,0.09739515,106050.0,106040.0,0.15392493]
[1762807886003,0.26872224,106050.0,106040.0,0.15392493]
[1762807886204,0.26872224,106050.0,106040.0,0.05958803]
[1762807886701,0.26872224,106050.0,106040.0,0.15392493]
[1762807887005,0.26872224,106050.0,106040.0,0.05958803]
[1762807889004,0.26872224,106050.0,106040.0,0.15392493]
[1762807889204,0.26872224,106050.0,106040.0,0.05958803]
[1762807890205,0.00306715,106050.0,106040.0,0.15392493]
[1762807890604,0.26872224,106050.0,106040.0,0.05958803]
[1762807890909,0.21420371,106050.0,106040.0,0.05958803]
[1762807891407,0.21420371,106050.0,106040.0,0.15392493]
[1762807891606,0.21220371,106050.0,106040.0,0.15392493]
[1762807892008,0.21220371,106050.0,106040.0,0.05958803]
[1762807892208,0.21220371,106050.0,106040.0,0.15392493]
[1762807892406,0.21220371,106050.0,106040.0,0.05958803]
[1762807892703,0.21420371,106050.0,106040.0,0.05958803]
[1762807894504,0.0943369,106040.0,106030.0,0.0584511]
[1762807894704,0.21114546,106040.0,106030.0,0.06064913]
[1762807895609,0.21414546,106040.0,106030.0,0.06064913]
[1762807895910,0.33295402,106040.0,106030.0,0.06064913]
[1762807896096,0.33295402,106040.0,106030.0,0.01558913]
[1762807896501,0.33295402,106040.0,106030.0,0.00233913]
[1762807896711,0.35631459,106040.0,106030.0,0.00233913]
[1762807896912,0.40317578,106040.0,106030.0,0.00233913]
[1762807897807,0.40317578,106040.0,106030.0,0.01627913]
[1762807898411,0.40317578,106040.0,106030.0,0.03916913]
[1762807898612,0.40317578,106040.0,106030.0,0.0140811]
[1762807899216,0.37981521,106040.0,106030.0,0.0140811]
[1762807901117,0.37981521,106040.0,106030.0,0.0001411]
[1762807903414,0.37981521,106040.0,106010.0,0.02330209]
[1762807903415,0.0943547,106020.0,106010.0,0.00992209]
[1762807903603,0.28141791,106020.0,106010.0,0.06119803]
[1762807903808,7.767e-05,106020.0,106010.0,0.15556163]
[1762807904108,0.18706321,106020.0,106010.0,0.15556163]
[1762807904408,0.18706321,106020.0,106010.0,0.16573708]
[1762807904614,0.28141791,106020.0,106010.0,0.16573708]
[1762807904814,0.18706321,106020.0,106010.0,0.16573708]
[1762807905818,0.28141791,106020.0,106010.0,0.07137348]
[1762807907120,0.28141791,106020.0,106010.0,0.16573708]
[1762807910621,0.28141791,106020.0,106010.0,0.07137348]
[1762807913516,0.18706321,106020.0,106010.0,0.07137348]
[1762807914322,0.28141791,106020.0,106010.0,0.16573708]
[1762807914525,0.28141791,106020.0,106010.0,0.07137348]
[1762807916014,0.28141791,106020.0,106010.0,0.16573698]
[1762807916310,0.28141791,106020.0,106010.0,0.07137348]
[1762807917314,0.28141791,106020.0,106010.0,0.16573698]
[1762807917516,0.28141791,106020.0,106010.0,0.07137348]
[1762807920312,7.767e-05,106020.0,106010.0,0.2490543]
[1762807920519,0.09363387,106030.0,106020.0,0.1532446]
[1762807920721,0.18797957,106030.0,106020.0,0.06108803]
[1762807921026,0.18797957,106030.0,106020.0,0.15544263]
[1762807921626,0.09363387,106030.0,106020.0,0.15544263]
[1762807921826,0.18797957,106030.0,106020.0,0.15544263]
[1762807922024,0.18897957,106030.0,106020.0,0.15544263]
[1762807922223,0.0011411,106030.0,106020.0,0.15544263]
[1762807922620,0.09563387,106030.0,106020.0,0.2489354]
[1762807922820,0.18997957,106030.0,106020.0,0.2489354]
[1762807923333,0.18997957,106030.0,106020.0,0.15544263]
[1762807923531,0.18997957,106030.0,106020.0,0.2489354]
[1762807924421,0.18997957,106030.0,106020.0,0.15544263]
[1762807924630,0.0021411,106030.0,106020.0,0.15544263]
[1762807924825,0.0943158,106070.0,106060.0,0.05889]
[1762807925025,0.30469203,106070.0,106060.0,0.05889]
[1762807925228,0.30469203,106070.0,106060.0,0.06108803]
[1762807925932,0.31069203,106070.0,106060.0,0.06108803]
[1762807926125,0.31569203,106070.0,106060.0,0.06108803]
[1762807926835,0.31569203,106070.0,106060.0,0.15540703]
[1762807927432,0.31569203,106070.0,106060.0,0.06108803]
[1762807927732,0.29230134,106070.0,106060.0,0.06108803]
[1762807928835,0.10449277,106070.0,106060.0,0.15540703]
[1762807929434,0.19880287,106070.0,106060.0,0.15540703]
[1762807930238,0.10449277,106070.0,106060.0,0.15540703]
[1762807930536,0.10449277,106070.0,106060.0,0.2488998]
[1762807930830,0.10449277,106070.0,106060.0,0.15540703]
[1762807930831,0.19880287,106070.0,106060.0,0.15540703]
[1762807931231,0.19880287,106070.0,106060.0,0.06108803]
[1762807931634,0.19880287,106070.0,106060.0,0.15540703]
[1762807932135,0.19880287,106070.0,106060.0,0.06108803]
[1762807932336,0.29229564,106070.0,106060.0,0.06108803]
[1762807933328,0.19880287,106070.0,106060.0,0.06108803]
[1762807933535,0.29229564,106070.0,106060.0,0.06108803]
[1762807938332,0.094319,106060.0,106050.0,0.0359811]
[1762807938534,0.28130454,106060.0,106050.0,0.06122913]
[1762807939333,0.28130454,106060.0,106050.0,0.15555703]
[1762807939735,0.28530454,106060.0,106050.0,0.15555703]
[1762807940233,0.28530454,106060.0,106050.0,0.06122913]
[1762807940439,0.29030454,106060.0,106050.0,0.01586913]
[1762807940638,0.28630454,106060.0,106050.0,0.01586913]
[1762807940838,0.28830454,106060.0,106050.0,0.03849913]
[1762807941037,0.28830454,106060.0,106050.0,0.06060913]
[1762807941237,0.28130454,106060.0,106050.0,0.06060913]
[1762807941439,0.28530454,106060.0,106050.0,0.06060913]
[1762807942033,0.28330454,106060.0,106050.0,0.06060913]
[1762807942227,0.28630454,106060.0,106050.0,0.06060913]
[1762807942740,0.28430454,106060.0,106050.0,0.06060913]
[1762807942934,0.28730454,106060.0,106050.0,0.06060913]
[1762807943339,0.28430454,106060.0,106050.0,0.06060913]
[1762807943538,0.28330454,106060.0,106050.0,0.06060913]
[1762807943840,0.28530454,106060.0,106050.0,0.06060913]
[1762807948938,0.098319,106060.0,106050.0,0.15493703]
[1762807949142,0.28530454,106060.0,106050.0,0.06060913]
[1762807952839,0.19175078,106060.0,106050.0,0.06060913]
[1762807957642,0.004,106060.0,106050.0,0.15493703]
[1762807957846,0.004,106060.0,106050.0,0.24836881]
[1762807958139,0.004,106060.0,106050.0,0.15493703]
[1762807958346,0.19175078,106060.0,106050.0,0.06060913]
[1762807959447,0.19175078,106060.0,106050.0,0.15493703]
[1762807959747,0.19175078,106060.0,106050.0,0.06060913]
[1762807960248,0.19175078,106060.0,106050.0,0.15493703]
[1762807960443,0.19175078,106060.0,106050.0,0.06060913]
[1762807960948,0.19175078,106060.0,106050.0,0.15493703]
[1762807961451,0.098319,106060.0,106050.0,0.15493703]
[1762807961748,0.19175078,106060.0,106050.0,0.15493703]
[1762807966050,0.19175078,106060.0,106050.0,0.06060913]
[1762807970452,0.30857913,106060.0,106050.0,0.0001411]
[1762807970656,0.19175078,106060.0,106050.0,0.05912913]
[1762807972456,0.21514841,106060.0,106050.0,0.05912913]
[1762807972759,0.21514841,106060.0,106050.0,0.0001411]
[1762807972760,0.30858019,106060.0,106050.0,0.0001411]
[1762807973256,0.21514841,106060.0,106050.0,0.05912913]
[1762807979062,0.19175078,106060.0,106050.0,0.05912913]
[1762807979955,0.098319,106060.0,106050.0,0.05912913]
[1762807980154,0.19175078,106060.0,106050.0,0.05912913]
[1762807980356,0.19175078,106060.0,106050.0,0.15345703]
[1762807980560,0.19175078,106060.0,106050.0,0.05912913]
[1762807981162,0.19175078,106060.0,106050.0,0.15345703]
[1762807981966,0.19175078,106060.0,106050.0,0.05912913]
[1762807987458,0.098319,106060.0,106050.0,0.05912913]
[1762807987772,0.19175078,106060.0,106050.0,0.05912913]
[1762807989270,0.19175078,106060.0,106050.0,0.15345703]
[1762807989761,0.19175078,106060.0,106050.0,0.05912913]
[1762807993964,0.19175078,106060.0,106050.0,0.03690913]
[1762807994167,0.19175078,106060.0,106050.0,0.05819913]
[1762807999861,0.19175078,106060.0,106050.0,0.15252703]
[1762808000065,0.004,106060.0,106050.0,0.15252703]
[1762808000772,0.09743178,106060.0,106050.0,0.15252703]
[1762808001175,0.09743178,106060.0,106050.0,0.29812703]
[1762808001474,0.004,106060.0,106050.0,0.29812703]
[1762808002267,0.098319,106060.0,106050.0,0.29812703]
[1762808003167,0.004,106060.0,106050.0,0.29812703]
[1762808004578,0.004,106060.0,106050.0,0.24595881]
[1762808007170,0.0983191,106060.0,106050.0,0.15252703]
[1762808008078,0.19175088,106060.0,106050.0,0.15252703]
[1762808013676,0.19175088,106060.0,106050.0,0.29812703]
[1762808014883,0.19172322,106060.0,106050.0,0.39153115]
[1762808018987,0.28512734,106060.0,106050.0,0.29812703]
[1762808019186,0.28512734,106060.0,106050.0,0.39153115]
[1762808019382,0.28512734,106060.0,106050.0,0.29812713]
[1762808020183,0.28512734,106060.0,106050.0,0.39153125]
[1762808020388,0.19172322,106060.0,106050.0,0.39153125]
[1762808023091,0.09740412,106060.0,106050.0,0.39153125]
[1762808023282,0.19172322,106060.0,106050.0,0.39153125]
[1762808025694,0.004,106060.0,106050.0,0.39153125]
[1762808025989,0.09740412,106060.0,106050.0,0.39153125]
[1762808026691,0.19172322,106060.0,106050.0,0.39153125]
[1762808027194,0.09740412,106060.0,106050.0,0.39153125]
[1762808027584,0.19172322,106060.0,106050.0,0.39153125]
[1762808029492,0.28512734,106060.0,106050.0,0.29812713]
[1762808029693,0.28512734,106060.0,106050.0,0.39153125]
[1762808031595,0.28512734,106060.0,106050.0,0.47551664]
[1762808033097,0.28512734,106060.0,106050.0,0.38211252]
[1762808033393,0.28512734,106060.0,106050.0,0.39153125]
[1762808034490,0.28512734,106060.0,106050.0,0.29812713]
[1762808034696,0.28512734,106060.0,106050.0,0.39153125]
[1762808035296,0.0001411,106080.0,106070.0,0.05705]
[1762808035597,0.09354522,106080.0,106070.0,0.24696225]
[1762808036597,0.09354522,106080.0,106070.0,0.33094764]
[1762808037296,0.09354522,106080.0,106070.0,0.24696225]
[1762808037690,0.0001411,106080.0,106070.0,0.24696225]
[1762808038198,0.09354522,106080.0,106070.0,0.24696225]
[1762808038889,0.18784652,106080.0,106070.0,0.24696225]
[1762808039292,0.18784652,106080.0,106070.0,0.24796225]
[1762808039799,0.09354522,106080.0,106070.0,0.24796225]
[1762808040188,0.18784652,106080.0,106070.0,0.24796225]
[1762808041299,0.18784652,106080.0,106070.0,0.15455813]
[1762808041494,0.18784652,106080.0,106070.0,0.32258458]
[1762808041694,0.09354522,106080.0,106070.0,0.32258458]
[1762808041895,0.18784652,106080.0,106070.0,0.32258458]
[1762808042190,0.09354522,106080.0,106070.0,0.32258458]
[1762808043698,0.0001411,106080.0,106070.0,0.32258458]
[1762808044000,0.0001411,106080.0,106070.0,0.68054458]
[1762808044205,0.09354522,106080.0,106070.0,0.68054458]
[1762808044495,0.18769412,106100.0,106090.0,0.1396424]
[1762808044691,0.28109824,106100.0,106090.0,0.51336043]
[1762808045902,0.28109824,106100.0,106090.0,0.41906803]
[1762808046097,0.28109824,106100.0,106090.0,0.51336043]
[1762808046098,0.28309824,106100.0,106090.0,0.51336043]
[1762808046293,0.28309824,106100.0,106090.0,0.41906803]
[1762808046802,0.28409824,106100.0,106090.0,0.41906803]
[1762808047598,0.28409824,106100.0,106090.0,0.42873142]
[1762808051001,0.28409824,106100.0,106090.0,0.41906803]
[1762808051203,0.37750236,106100.0,106090.0,0.37371803]
[1762808051804,0.37750236,106100.0,106090.0,0.39692803]
[1762808052407,0.37750236,106100.0,106090.0,0.36015803]
[1762808052803,0.37750236,106100.0,106080.0,0.1593011]
[1762808052804,0.0942924,106090.0,106080.0,0.0001411]
[1762808053108,0.094328,106050.0,106040.0,0.27259]
[1762808053310,0.18772962,106060.0,106050.0,0.03677]
[1762808053498,0.18772962,106060.0,106050.0,0.06110803]
[1762808054495,0.28113374,106060.0,106050.0,0.06110803]
[1762808055503,0.28413374,106060.0,106050.0,0.06110803]
[1762808056006,0.28613374,106060.0,106050.0,0.06110803]
[1762808057900,0.19180824,106060.0,106050.0,0.15543603]
[1762808058104,0.09840412,106060.0,106050.0,0.24884015]
[1762808058507,0.005,106060.0,106050.0,0.32325022]
[1762808058708,0.0001411,106070.0,106060.0,0.1532292]
[1762808059013,0.09354522,106070.0,106060.0,0.60679135]
[1762808060100,0.10054522,106070.0,106060.0,0.60779135]
[1762808061314,0.19485552,106070.0,106060.0,0.60779135]
[1762808062014,0.10054522,106070.0,106060.0,0.60779135]
[1762808062618,0.10054522,106070.0,106060.0,0.51438723]
[1762808062915,0.19485552,106070.0,106060.0,0.60779135]
[1762808063216,0.10054522,106070.0,106060.0,0.60779135]
[1762808065008,0.09754522,106070.0,106060.0,0.60879135]
[1762808065312,0.09354522,106070.0,106060.0,0.60979135]
[1762808066815,0.18785552,106070.0,106060.0,0.60979135]
[1762808067315,0.18785552,106070.0,106060.0,0.51638723]
[1762808069310,0.09354522,106070.0,106060.0,0.51638723]
[1762808070323,0.28125964,106070.0,106060.0,0.42206803]
[1762808070506,0.37466376,106070.0,106060.0,0.37452]
[1762808070814,0.37466376,106070.0,106060.0,0.003]
[1762808070815,0.3979521,106070.0,106060.0,0.003]
[1762808071019,0.0943191,106060.0,106050.0,0.37152]
[1762808071313,0.18772322,106060.0,106050.0,0.37152]
[1762808072315,0.19072322,106060.0,106050.0,0.37152]
[1762808073316,0.37753146,106060.0,106050.0,0.37152]
[1762808073516,0.37753146,106060.0,106050.0,0.39409]
[1762808073719,0.37753146,106060.0,106050.0,0.41740803]
[1762808074925,0.28423522,106060.0,106050.0,0.41740803]
[1762808076621,0.28423522,106060.0,106050.0,0.37152]
[1762808076923,0.094328,106050.0,106040.0,0.0362711]
[1762808077124,0.28124412,106050.0,106040.0,0.0362711]
[1762808078120,0.28224412,106050.0,106040.0,0.0362711]
[1762808078318,0.28324412,106050.0,106040.0,0.0362711]
[1762808078614,0.28324412,106050.0,106040.0,0.0137011]
[1762808079223,0.28324412,106050.0,106040.0,0.05958913]
[1762808080325,0.28324412,106050.0,106040.0,0.05959913]
[1762808081124,0.28324412,106050.0,106040.0,0.0574011]
[1762808081328,0.28324412,106050.0,106040.0,0.0362811]
[1762808082027,0.28324412,106050.0,106040.0,0.0137111]
[1762808082221,0.28324412,106050.0,106040.0,0.05959913]
[1762808083130,0.28624412,106050.0,106040.0,0.05959913]
[1762808083929,0.28424412,106050.0,106040.0,0.06059913]
[1762808084228,0.28624412,106050.0,106040.0,0.06059913]
[1762808084430,0.28324412,106050.0,106040.0,0.05959913]
[1762808084626,0.28524412,106050.0,106040.0,0.05959913]
[1762808085528,0.28324412,106050.0,106040.0,0.05959913]
[1762808085731,0.28424412,106050.0,106040.0,0.05959913]
[1762808086124,0.28324412,106050.0,106040.0,0.05959913]
[1762808086733,0.28324412,106050.0,106040.0,0.0574011]
[1762808086929,0.28424412,106050.0,106040.0,0.0137111]
[1762808087126,0.0943458,106030.0,106020.0,0.05726]
[1762808087325,0.18780386,106030.0,106020.0,0.05945803]
[1762808088328,0.18880386,106030.0,106020.0,0.05945803]
[1762808090030,0.28426192,106030.0,106020.0,0.05945803]
[1762808090231,0.19080386,106030.0,106020.0,0.05945803]
[1762808090636,0.28426192,106030.0,106020.0,0.05945803]
[1762808091832,0.19080386,106030.0,106020.0,0.05945803]
[1762808093841,0.28426192,106030.0,106020.0,0.05945803]
[1762808094430,0.0943547,106020.0,106010.0,0.05678]
[1762808094638,0.28127082,106020.0,106010.0,0.05678]
[1762808095641,0.28227082,106020.0,106010.0,0.01357]
[1762808095842,0.28227082,106020.0,106010.0,0.0356]
[1762808096941,0.28227082,106020.0,106010.0,0.05853]
[1762808097138,0.30607345,106020.0,106010.0,0.05853]
[1762808097645,0.30607345,106020.0,106010.0,0.01357]
[1762808097846,0.30607305,106020.0,106010.0,0.01357]
[1762808098644,0.30607305,106020.0,106010.0,0.06072803]
[1762808100442,0.1140325,106000.0,105990.0,0.04496]
[1762808100650,0.23129279,106000.0,105990.0,0.04715803]
[1762808101348,0.23129279,106000.0,105970.0,0.25306774]
[1762808101349,0.1390303,105980.0,105970.0,0.00011244]
[1762808101540,0.1380392,105970.0,105960.0,0.05792]
[1762808101747,0.0944081,105960.0,105950.0,0.02203]
[1762808102046,0.32596422,105960.0,105950.0,0.06011803]
[1762808102349,0.23250616,105960.0,105950.0,0.06011803]
[1762808102544,0.32596422,105960.0,105950.0,0.06011803]
[1762808102743,0.32603534,105960.0,105950.0,0.06011803]
[1762808102943,0.32203534,105960.0,105950.0,0.06011803]
[1762808103640,0.32303534,105960.0,105950.0,0.06011803]
[1762808104951,0.30776598,105960.0,105950.0,0.06011803]
[1762808106647,0.1371171,105950.0,105940.0,0.06766088]
[1762808106841,0.30876386,105950.0,105940.0,0.06985891]
[1762808107844,0.30876386,105950.0,105940.0,0.04696]
[1762808108153,0.30876386,105950.0,105940.0,0.002]
[1762808108545,0.33279905,105950.0,105930.0,0.01296]
[1762808108844,0.30877276,105940.0,105930.0,0.05792]
[1762808109052,0.30884389,105940.0,105930.0,0.05792]
[1762808109245,0.1371349,105930.0,105920.0,0.3748]
[1762808109550,0.21434676,105930.0,105920.0,0.15456183]
[1762808109752,0.21434676,105930.0,105920.0,0.06011803]
[1762808110045,0.21434676,105930.0,105920.0,0.15456183]
[1762808110253,0.21434676,105930.0,105920.0,0.15567561]
[1762808110550,0.21434676,105930.0,105920.0,0.15588198]
[1762808111338,0.21434676,105930.0,105920.0,0.15688198]
[1762808111757,0.21534676,105930.0,105920.0,0.15688198]
[1762808112437,0.31680166,105930.0,105920.0,0.00451818]
[1762808112640,0.31680166,105930.0,105920.0,0.00232015]
[1762808112842,0.31690741,105930.0,105920.0,0.00232015]
[1762808115152,0.31690741,105930.0,105920.0,0.00132015]
[1762808115352,0.67550741,105930.0,105920.0,0.00132015]
[1762808115543,0.1371528,105910.0,105900.0,0.0580218]
[1762808115743,0.1371528,105910.0,105900.0,0.0001018]
[1762808115744,0.312232,105910.0,105900.0,0.0001018]
[1762808116648,0.312232,105910.0,105900.0,0.0021018]
[1762808116851,0.0427,105890.0,105880.0,0.05792]
[1762808117054,0.21434676,105890.0,105880.0,0.06011803]
[1762808117546,0.21434676,105890.0,105880.0,0.15459753]
[1762808117749,0.21441814,105890.0,105880.0,0.06011803]
[1762808117952,0.21441814,105890.0,105880.0,0.15659753]
[1762808118252,0.19306814,105890.0,105880.0,0.15659753]
[1762808118549,0.0001411,105900.0,105880.0,0.15659753]
[1762808118550,0.0001411,105900.0,105890.0,0.1523906]
[1762808118750,0.21460676,105930.0,105920.0,0.1523638]
[1762808119051,0.21460676,105930.0,105920.0,0.15456183]
[1762808119258,0.21460676,105930.0,105920.0,0.06011803]
[1762808119745,0.21471735,105930.0,105920.0,0.15456183]
[1762808119947,0.21471735,105930.0,105920.0,0.06011803]
[1762808120356,0.31515225,105930.0,105920.0,0.06011803]
[1762808120656,0.22071735,105930.0,105920.0,0.06011803]
[1762808121155,0.22271735,105930.0,105920.0,0.06011803]
[1762808121658,0.22271735,105930.0,105920.0,0.15456183]
[1762808121853,0.31715225,105930.0,105920.0,0.06011803]
[1762808122244,0.1374238,105920.0,105910.0,0.4179911]
[1762808122453,0.30907056,105920.0,105910.0,0.42018913]
[1762808123455,0.31307056,105920.0,105910.0,0.42018913]
[1762808124257,0.1424238,105920.0,105910.0,0.42018913]
[1762808124455,0.31407056,105920.0,105910.0,0.42018913]
[1762808125956,0.32109056,105920.0,105910.0,0.38424913]
[1762808126157,0.31407056,105920.0,105910.0,0.42105913]
[1762808126858,0.29139416,105920.0,105910.0,0.42105913]
[1762808127446,0.31533017,105920.0,105910.0,0.42105913]
[1762808130164,0.31533017,105920.0,105910.0,0.3732511]
[1762808130347,0.31533017,105920.0,105890.0,0.01296]
[1762808130348,0.0944617,105900.0,105890.0,0.01296]
[1762808130552,0.26620089,105900.0,105890.0,0.03778803]
[1762808130751,0.29018688,105900.0,105890.0,0.03778803]
[1762808130963,0.26620089,105900.0,105890.0,0.03778803]
[1762808131168,0.29018332,105900.0,105890.0,0.03778803]
[1762808131348,0.29018332,105900.0,105890.0,0.03559]
[1762808131661,0.29218332,105900.0,105890.0,0.01296]
[1762808131857,0.0944706,105890.0,105880.0,0.35048]
[1762808132062,0.29009979,105890.0,105880.0,0.35267803]
[1762808132255,0.17164676,105890.0,105880.0,0.35267803]
[1762808132654,0.17164676,105890.0,105880.0,0.44840506]
[1762808133054,0.17164676,105890.0,105880.0,0.44865124]
[1762808133463,0.17264676,105890.0,105880.0,0.44865124]
[1762808133663,0.17264676,105890.0,105880.0,0.35417164]
[1762808134471,0.17264676,105890.0,105880.0,0.44865124]
[1762808135151,0.001,105890.0,105880.0,0.44865124]
[1762808135354,0.17264676,105890.0,105880.0,0.44865124]
[1762808136868,0.11815739,105890.0,105880.0,0.44865124]
[1762808138368,0.001,105890.0,105880.0,0.44865124]
[1762808138566,0.11815739,105890.0,105880.0,0.44865124]
[1762808141867,0.21171152,105900.0,105890.0,0.1539107]
[1762808142075,0.23399373,105900.0,105890.0,0.15760234]
[1762808142261,0.13953203,105900.0,105890.0,0.15760234]
[1762808142968,0.11724982,105900.0,105890.0,0.15760234]
[1762808143373,9.243e-05,105900.0,105890.0,0.15760234]
[1762808144375,0.00309243,105900.0,105890.0,0.15760234]
[1762808145075,0.12024982,105900.0,105890.0,0.15760234]
[1762808146368,0.12024982,105900.0,105890.0,0.06313164]
[1762808146369,0.21471162,105900.0,105890.0,0.06313164]
[1762808146568,0.25855162,105900.0,105890.0,0.06313164]
[1762808146875,0.16408982,105900.0,105890.0,0.15760234]
[1762808147374,0.12024982,105900.0,105890.0,0.15760234]
[1762808149074,0.14197982,105900.0,105890.0,0.15760234]
[1762808149466,0.12024982,105900.0,105890.0,0.15760234]
[1762808149666,0.16424982,105900.0,105890.0,0.15760234]
[1762808150272,0.14197982,105900.0,105890.0,0.15760234]
[1762808150476,0.25871162,105900.0,105890.0,0.15760234]
[1762808150976,0.16424982,105900.0,105890.0,0.15760234]
[1762808152066,0.13023141,105900.0,105890.0,0.15760234]
[1762808153070,0.13028184,105900.0,105890.0,0.15760234]
[1762808154679,0.22517364,105900.0,105890.0,0.06313164]
[1762808154977,0.13071184,105900.0,105890.0,0.15760234]
[1762808155176,0.22517364,105900.0,105890.0,0.15760234]
[1762808155370,0.25876391,105900.0,105890.0,0.00149361]
[1762808155680,0.04422,105880.0,105870.0,0.1525085]
[1762808155875,0.02157043,105900.0,105890.0,0.1525707]
[1762808156075,5.043e-05,105900.0,105890.0,0.41945803]
[1762808156267,0.02157043,105900.0,105890.0,0.51392873]
[1762808156472,0.16142782,105900.0,105890.0,0.51392873]
[1762808156873,0.13872782,105900.0,105890.0,0.51392873]
[1762808158175,5.043e-05,105900.0,105890.0,0.51392873]
[1762808158482,5.043e-05,105900.0,105890.0,0.51492873]
[1762808159485,0.11920782,105900.0,105890.0,0.51592873]
[1762808159793,0.00205043,105900.0,105890.0,0.51592873]
[1762808160087,0.00205043,105900.0,105890.0,0.86916612]
[1762808160280,0.25582179,105920.0,105910.0,0.0581]
[1762808160480,0.27812043,105920.0,105910.0,0.41977803]
[1762808160687,0.25582179,105920.0,105910.0,0.41977803]
[1762808160880,0.16137739,105920.0,105910.0,0.41977803]
[1762808161077,0.25582129,105920.0,105910.0,0.41977803]
[1762808161585,0.25582129,105920.0,105910.0,0.51423083]
[1762808161586,0.16137739,105920.0,105910.0,0.51423083]
[1762808161888,0.25882129,105920.0,105910.0,0.41977803]
[1762808162584,0.16437739,105920.0,105910.0,0.51423083]
[1762808163477,0.25882139,105920.0,105910.0,0.51423083]
[1762808163676,0.25882139,105920.0,105910.0,0.41977803]
[1762808163880,0.16437739,105920.0,105910.0,0.51423103]
[1762808164381,0.02452,105920.0,105910.0,0.51423103]
[1762808164584,0.12015739,105920.0,105910.0,0.51423103]
[1762808165076,0.003,105920.0,105910.0,0.51423103]
[1762808165277,0.11729849,105930.0,105920.0,0.1525441]
[1762808165278,0.0001411,105930.0,105920.0,0.1525441]
[1762808165590,0.0001411,105930.0,105920.0,0.15474213]
[1762808165881,0.0216611,105930.0,105920.0,0.06029803]
[1762808166084,0.25595359,105930.0,105920.0,0.06029803]
[1762808166472,0.25995359,105930.0,105920.0,0.06029803]
[1762808166888,0.24028162,105930.0,105920.0,0.06029803]
[1762808167283,0.24128162,105930.0,105920.0,0.06029803]
[1762808167686,0.15919739,105930.0,105920.0,0.06029803]
[1762808167884,0.25363249,105930.0,105920.0,0.06029803]